fUSD/lending_fUSD_20251102
["ID","MTS","AMOUNT","RATE_DAILY","PERIOD"]
[392899595,1762117607884,500.0,0.00030136,120]
[392899596,1762117608758,500.0,0.00030136,120]
[392899597,1762117610191,500.0,0.00030136,120]
[392899598,1762117610446,500.0,0.00030136,120]
[392899599,1762117611209,197.29312636,0.00030136,120]
[392899600,1762117611437,500.0,0.00030136,120]
[392899601,1762117612087,341.21590563,0.00030136,120]
[392899602,1762117612154,289.9385179,0.00030136,120]
[392899603,1762117612629,500.0,0.00030136,120]
[392899604,1762117612983,502.46,0.00030136,120]
[392899605,1762117613240,500.0,0.00030136,120]
[392899606,1762117613398,500.0,0.00030136,120]
[392899607,1762117613610,631.31,0.00030136,120]
[392899608,1762117613692,720.55,0.00030136,120]
[392899609,1762117614104,500.0,0.00030136,120]
[392899610,1762117614651,500.0,0.00030136,120]
[392899611,1762117614966,500.0,0.00030136,120]
[392899612,1762117616260,500.0,0.00030136,120]
[392899613,1762117616401,500.0,0.00030136,120]
[392899614,1762117616646,500.0,0.00030136,120]
[392899615,1762117618532,500.0,0.00030136,120]
[392899616,1762117618952,500.0,0.00030136,120]
[392899617,1762117619656,500.0,0.00030136,120]
[392899618,1762117619891,500.0,0.00030136,120]
[392899619,1762117620836,500.0,0.00030136,120]
[392899620,1762117620898,500.0,0.00030136,120]
[392899621,1762117621146,500.0,0.00030136,120]
[392899622,1762117621560,500.0,0.00030136,120]
[392899623,1762117622713,500.0,0.00030136,120]
[392899624,1762117623148,500.0,0.00030136,120]
[392899625,1762117623608,500.0,0.00030136,120]
[392899626,1762117623715,500.0,0.00030136,120]
[392899627,1762117623904,500.0,0.00030136,120]
[392899628,1762117624596,500.0,0.00030136,120]
[392899629,1762117625179,500.0,0.00030136,120]
[392899630,1762117625930,534.28893826,0.00030136,120]
[392899631,1762117626126,500.0,0.00030136,120]
[392899632,1762117626204,500.0,0.00030136,120]
[392899633,1762117626530,500.0,0.00030136,120]
[392899634,1762117626600,527.32452552,0.00030136,120]
[392899635,1762117626837,628.04,0.00030136,120]
[392899636,1762117627417,500.0,0.00030136,120]
[392899637,1762117627655,500.0,0.00030136,120]
[392899638,1762117629309,500.0,0.00030136,120]
[392899639,1762117629661,386.63698033,0.00030136,120]
[392899640,1762117630362,500.0,0.00030136,120]
[392899641,1762117631217,500.0,0.00030136,120]
[392899642,1762117631421,500.0,0.00030136,120]
[392899643,1762117631618,500.0,0.00030136,120]
[392899644,1762117631700,500.0,0.00030136,120]
[392899645,1762117632486,1048.01,0.00030136,120]
[392899646,1762117633031,500.0,0.00030136,120]
[392899647,1762117633147,450.0,0.00030136,120]
[392899648,1762117635350,500.0,0.00030136,120]
[392899649,1762117635445,500.0,0.00030136,120]
[392899650,1762117637359,500.0,0.00030136,120]
[392899651,1762117637450,522.40846029,0.00030136,120]
[392899652,1762117637516,328.64260023,0.00030136,120]
[392899653,1762117637602,500.0,0.00030136,120]
[392899654,1762117638268,500.0,0.00030136,120]
[392899655,1762117639364,500.0,0.00030136,120]
[392899656,1762117639662,294.95525944,0.00030136,120]
[392899657,1762117640962,500.0,0.00030136,120]
[392899658,1762117641327,500.0,0.00030136,120]
[392899659,1762117641431,500.0,0.00030136,120]
[392899660,1762117641765,500.0,0.00030136,120]
[392899661,1762117641830,500.0,0.00030136,120]
[392899662,1762117642477,500.0,0.00030136,120]
[392899663,1762117643680,500.0,0.00030136,120]
[392899664,1762117644603,500.0,0.00030136,120]
[392899665,1762117644693,500.0,0.00030136,120]
[392899666,1762117644992,500.0,0.00030136,120]
[392899667,1762117645628,500.0,0.00030136,120]
[392899668,1762117646585,868.87,0.00030136,120]
[392899669,1762117646924,500.0,0.00030136,120]
[392899670,1762117648650,500.0,0.00030136,120]
[392899671,1762117648857,500.0,0.00030136,120]
[392899672,1762117649023,500.0,0.00030136,120]
[392899673,1762117649521,500.0,0.00030136,120]
[392899674,1762117651939,879.95,0.00030136,120]
[392899675,1762117652679,500.0,0.00030136,120]
[392899676,1762117653397,500.0,0.00030136,120]
[392899677,1762117653627,500.0,0.00030136,120]
[392899678,1762117654690,500.0,0.00030136,120]
[392899679,1762117655945,519.75272033,0.00030136,120]
[392899680,1762117656184,500.0,0.00030136,120]
[392899681,1762117656255,557.6,0.00030136,120]
[392899682,1762117656432,500.0,0.00030136,120]
[392899683,1762117656722,520.28583653,0.00030136,120]
[392899684,1762117657094,500.0,0.00030136,120]
[392899685,1762117657698,500.0,0.00030136,120]
[392899686,1762117657779,500.0,0.00030136,120]
[392899687,1762117658612,500.0,0.00030136,120]
[392899688,1762117659335,500.0,0.00030136,120]
[392899689,1762117659422,500.0,0.00030136,120]
[392899690,1762117659506,500.0,0.00030136,120]
[392899691,1762117659626,500.0,0.00030136,120]
[392899692,1762117660119,500.0,0.00030136,120]
[392899693,1762117661208,527.01240294,0.00030136,120]
[392899694,1762117661324,500.0,0.00030136,120]
[392899695,1762117662042,500.0,0.00030136,120]
[392899696,1762117662231,500.0,0.00030136,120]
[392899697,1762117662716,500.0,0.00030136,120]
[392899698,1762117663011,500.0,0.00030136,120]
[392899699,1762117664075,639.23,0.00030136,120]
[392899700,1762117664524,500.0,0.00030136,120]
[392899701,1762117666320,500.0,0.00030136,120]
[392899702,1762117666786,500.0,0.00030136,120]
[392899703,1762117668304,500.0,0.00030136,120]
[392899704,1762117668429,500.0,0.00030136,120]
[392899705,1762117668496,500.0,0.00030136,120]
[392899706,1762117669654,500.0,0.00030136,120]
[392899707,1762117670497,500.0,0.00030136,120]
[392899708,1762117670855,500.0,0.00030136,120]
[392899709,1762117671978,500.0,0.00030136,120]
[392899710,1762117672711,500.0,0.00030136,120]
[392899711,1762117672893,500.0,0.00030136,120]
[392899712,1762117673251,518.60206428,0.00030136,120]
[392899713,1762117673532,500.0,0.00030136,120]
[392899714,1762117674381,500.0,0.00030136,120]
[392899715,1762117675680,500.0,0.00030136,120]
[392899716,1762117678014,500.0,0.00030136,120]
[392899717,1762117678770,500.0,0.00030136,120]
[392899718,1762117682759,500.0,0.00030136,120]
[392899720,1762117683417,500.0,0.00030136,120]
[392899721,1762117684958,520.35242095,0.00030136,120]
[392899722,1762117685583,500.0,0.00030136,120]
[392899723,1762117686127,500.0,0.00030136,120]
[392899724,1762117686191,500.0,0.00030136,120]
[392899725,1762117688821,9400.01,0.00013842,2]
[392899726,1762117688845,132.57,0.00013842,2]
[392899727,1762117688911,514.20469818,0.00030136,120]
[392899728,1762117689665,500.0,0.00030136,120]
[392899729,1762117690058,634.91,0.00030136,120]
[392899730,1762117693680,9867.44,0.00013854,2]
[392899731,1762117693706,1070.22,0.00013854,2]
[392899732,1762117693777,500.0,0.00030136,120]
[392899733,1762117694009,500.0,0.00030136,120]
[392899734,1762117699067,500.0,0.00030136,120]
[392899735,1762117705274,500.0,0.00030136,120]
[392899736,1762117705568,519.86413619,0.00030136,120]
[392899737,1762117705760,500.0,0.00030136,120]
[392899738,1762117705823,500.0,0.00030136,120]
[392899739,1762117708350,503.4280046,0.00030136,120]
[392899740,1762117710379,863.19,0.00030136,120]
[392899741,1762117712555,500.0,0.00030136,120]
[392899742,1762117714266,500.0,0.00030136,120]
[392899743,1762117715952,500.0,0.00030136,120]
[392899744,1762117716176,500.0,0.00030136,120]
[392899745,1762117717977,584.46,0.00030136,120]
[392899746,1762117719297,518.21488279,0.00030136,120]
[392899747,1762117719452,500.0,0.00030136,120]
[392899748,1762117726185,529.93056429,0.00030136,120]
[392899749,1762117726942,680.79,0.00030136,120]
[392899750,1762117728145,500.0,0.00030136,120]
[392899751,1762117728214,500.0,0.00030136,120]
[392899752,1762117731575,500.0,0.00030136,120]
[392899753,1762117732061,500.0,0.00030136,120]
[392899754,1762117733145,521.47203198,0.00030136,120]
[392899755,1762117733672,500.0,0.00030136,120]
[392899756,1762117735201,500.0,0.00030136,120]
[392899757,1762117736445,500.0,0.00030136,120]
[392899758,1762117736623,500.0,0.00030136,120]
[392899759,1762117738602,500.0,0.00030136,120]
[392899760,1762117738815,518.34545463,0.00030136,120]
[392899761,1762117739544,500.0,0.00030136,120]
[392899762,1762117740628,500.0,0.00030136,120]
[392899763,1762117740947,500.0,0.00030136,120]
[392899764,1762117741060,500.0,0.00030136,120]
[392899765,1762117741435,584.32219497,0.00030136,120]
[392899766,1762117741610,500.0,0.00030136,120]
[392899767,1762117741690,500.0,0.00030136,120]
[392899768,1762117742494,611.164904,0.00030136,120]
[392899769,1762117742593,500.0,0.00030136,120]
[392899770,1762117742890,500.0,0.00030136,120]
[392899771,1762117743201,500.0,0.00030136,120]
[392899772,1762117743618,859.25,0.00030136,120]
[392899773,1762117743944,500.0,0.00030136,120]
[392899774,1762117744026,776.31,0.00030136,120]
[392899775,1762117744144,500.0,0.00030136,120]
[392899776,1762117744559,500.0,0.00030136,120]
[392899777,1762117744628,500.0,0.00030136,120]
[392899778,1762117744812,500.0,0.00030136,120]
[392899779,1762117746278,500.0,0.00030136,120]
[392899780,1762117746399,500.0,0.00030136,120]
[392899781,1762117747013,173.89344023,0.00030136,120]
[392899782,1762117748195,500.0,0.00030136,120]
[392899783,1762117748384,500.0,0.00030136,120]
[392899784,1762117749713,500.0,0.00030136,120]
[392899785,1762117750337,500.0,0.00030136,120]
[392899786,1762117750487,500.0,0.00030136,120]
[392899787,1762117750601,500.0,0.00030136,120]
[392899788,1762117752538,500.0,0.00030136,120]
[392899789,1762117752735,500.0,0.00030136,120]
[392899790,1762117752808,500.0,0.00030136,120]
[392899791,1762117753313,530.24,0.00030136,120]
[392899792,1762117754030,500.0,0.00030136,120]
[392899793,1762117755428,500.0,0.00030136,120]
[392899794,1762117755746,500.0,0.00030136,120]
[392899795,1762117755840,500.0,0.00030136,120]
[392899796,1762117756462,500.0,0.00030136,120]
[392899797,1762117756865,500.0,0.00030136,120]
[392899798,1762117756939,500.0,0.00030136,120]
[392899799,1762117757680,500.0,0.00030136,120]
[392899800,1762117757751,500.0,0.00030136,120]
[392899801,1762117758232,506.44814359,0.00030136,120]
[392899802,1762117758484,539.60203323,0.00030136,120]
[392899803,1762117759015,869.8,0.00030136,120]
[392899804,1762117759109,500.0,0.00030136,120]
[392899805,1762117760020,500.0,0.00030136,120]
[392899806,1762117761498,1000.0,0.00030136,120]
[392899807,1762117761618,500.0,0.00030136,120]
[392899808,1762117761859,835.0,0.00030136,120]
[392899809,1762117762137,238.06936281,0.00030136,120]
[392899810,1762117762743,500.0,0.00030136,120]
[392899811,1762117763021,500.0,0.00030136,120]
[392899812,1762117763678,500.0,0.00030136,120]
[392899813,1762117764400,344.78989109,0.00030136,120]
[392899814,1762117764709,519.00685271,0.00030136,120]
[392899815,1762117764768,500.0,0.00030136,120]
[392899816,1762117764829,500.0,0.00030136,120]
[392899817,1762117764907,540.82365066,0.00030136,120]
[392899818,1762117766887,560.72579499,0.00030136,120]
[392899819,1762117768557,500.0,0.00030136,120]
[392899820,1762117768714,890.25,0.00030136,120]
[392899821,1762117768974,500.0,0.00030136,120]
[392899822,1762117769107,500.0,0.00030136,120]
[392899823,1762117771855,500.0,0.00030136,120]
[392899824,1762117772266,500.0,0.00030136,120]
[392899825,1762117772551,257.48078091,0.00030136,120]
[392899826,1762117772695,500.0,0.00030136,120]
[392899827,1762117772767,500.0,0.00030136,120]
[392899828,1762117774257,500.0,0.00030136,120]
[392899829,1762117774595,507.04290158,0.00030136,120]
[392899830,1762117775068,504.29595898,0.00030136,120]
[392899831,1762117776009,500.0,0.00030136,120]
[392899832,1762117776916,500.0,0.00030136,120]
[392899833,1762117778156,500.0,0.00030136,120]
[392899834,1762117778628,1061.25,0.00030136,120]
[392899835,1762117778695,500.0,0.00030136,120]
[392899836,1762117778917,500.0,0.00030136,120]
[392899837,1762117779475,500.0,0.00030136,120]
[392899838,1762117781162,500.0,0.00030136,120]
[392899839,1762117781268,500.0,0.00030136,120]
[392899840,1762117781352,500.0,0.00030136,120]
[392899841,1762117781807,500.0,0.00030136,120]
[392899842,1762117782383,1073.11,0.00030136,120]
[392899843,1762117782768,500.0,0.00030136,120]
[392899844,1762117784028,500.0,0.00030136,120]
[392899845,1762117784446,270.91768308,0.00030136,120]
[392899846,1762117785027,500.0,0.00030136,120]
[392899847,1762117785710,514.22881871,0.00030136,120]
[392899848,1762117786543,500.0,0.00030136,120]
[392899849,1762117786956,500.0,0.00030136,120]
[392899850,1762117787477,500.0,0.00030136,120]
[392899851,1762117788344,500.0,0.00030136,120]
[392899852,1762117788509,301.14816273,0.00030136,120]
[392899853,1762117788919,249.93344166,0.00030136,120]
[392899854,1762117789281,558.53,0.00030136,120]
[392899855,1762117789609,603.85,0.00030136,120]
[392899856,1762117790205,500.0,0.00030136,120]
[392899857,1762117790397,500.0,0.00030136,120]
[392899858,1762117791643,689.5,0.00030136,120]
[392899859,1762117791856,623.61739074,0.00030136,120]
[392899860,1762117792384,500.0,0.00030136,120]
[392899861,1762117793542,500.0,0.00030136,120]
[392899862,1762117794111,264.58227014,0.00030136,120]
[392899863,1762117794364,500.0,0.00030136,120]
[392899864,1762117794598,309.99458299,0.00030136,120]
[392899865,1762117796143,394.45042871,0.00030136,120]
[392899866,1762117796341,500.0,0.00030136,120]
[392899867,1762117797195,1852.42,0.00013849,2]
[392899868,1762117797688,354.49552726,0.00030136,120]
[392899869,1762117797906,500.0,0.00030136,120]
[392899870,1762117798123,500.0,0.00030136,120]
[392899871,1762117798573,500.0,0.00030136,120]
[392899872,1762117798985,733.12,0.00030136,120]
[392899873,1762117799427,500.0,0.00030136,120]
[392899874,1762117800220,566.97240075,0.00030136,120]
[392899875,1762117800467,500.0,0.00030136,120]
[392899876,1762117800543,500.0,0.00030136,120]
[392899877,1762117800608,500.0,0.00030136,120]
[392899878,1762117800768,500.0,0.00030136,120]
[392899879,1762117801013,643.8,0.00030136,120]
[392899880,1762117802528,500.0,0.00030136,120]
[392899881,1762117803150,500.0,0.00030136,120]
[392899882,1762117803821,500.0,0.00030136,120]
[392899883,1762117803913,500.0,0.00030136,120]
[392899884,1762117804000,703.3,0.00030136,120]
[392899885,1762117804917,500.0,0.00030136,120]
[392899886,1762117805605,500.0,0.00030136,120]
[392899887,1762117806414,500.0,0.00030136,120]
[392899888,1762117808013,500.0,0.00030136,120]
[392899889,1762117808499,500.0,0.00030136,120]
[392899890,1762117808710,500.0,0.00030136,120]
[392899891,1762117808790,641.87451459,0.00030136,120]
[392899892,1762117808871,500.0,0.00030136,120]
[392899893,1762117809420,500.0,0.00030136,120]
[392899894,1762117810395,216.93616481,0.00030136,120]
[392899895,1762117810815,500.0,0.00030136,120]
[392899896,1762117810961,500.0,0.00030136,120]
[392899897,1762117812696,500.0,0.00030136,120]
[392899898,1762117812800,500.0,0.00030136,120]
[392899899,1762117813552,500.0,0.00030136,120]
[392899900,1762117814390,500.0,0.00030136,120]
[392899901,1762117814465,500.0,0.00030136,120]
[392899902,1762117814652,500.0,0.00030136,120]
[392899903,1762117814723,500.0,0.00030136,120]
[392899904,1762117815537,500.0,0.00030136,120]
[392899905,1762117816345,500.0,0.00030136,120]
[392899906,1762117816738,479.54693001,0.00030136,120]
[392899907,1762117817147,500.0,0.00030136,120]
[392899908,1762117817432,500.0,0.00030136,120]
[392899909,1762117818635,633.47373037,0.00030136,120]
[392899910,1762117818706,500.0,0.00030136,120]
[392899911,1762117818988,500.0,0.00030136,120]
[392899912,1762117819369,500.0,0.00030136,120]
[392899913,1762117819849,500.0,0.00030136,120]
[392899914,1762117820199,500.0,0.00030136,120]
[392899915,1762117820629,500.0,0.00030136,120]
[392899916,1762117820714,500.0,0.00030136,120]
[392899917,1762117821236,500.0,0.00030136,120]
[392899918,1762117822216,500.0,0.00030136,120]
[392899919,1762117822463,500.0,0.00030136,120]
[392899920,1762117822579,500.0,0.00030136,120]
[392899921,1762117823317,237.62001666,0.00030136,120]
[392899922,1762117824172,506.56144089,0.00030136,120]
[392899923,1762117824890,500.0,0.00030136,120]
[392899924,1762117824977,500.0,0.00030136,120]
[392899925,1762117825115,500.0,0.00030136,120]
[392899926,1762117825238,500.0,0.00030136,120]
[392899927,1762117825384,582.3265176,0.00030136,120]
[392899928,1762117825883,500.0,0.00030136,120]
[392899929,1762117826090,500.0,0.00030136,120]
[392899930,1762117826177,500.0,0.00030136,120]
[392899931,1762117827573,500.0,0.00030136,120]
[392899932,1762117828640,500.0,0.00030136,120]
[392899933,1762117828788,500.0,0.00030136,120]
[392899934,1762117828857,536.03147134,0.00030136,120]
[392899935,1762117828927,480.93898555,0.00030136,120]
[392899936,1762117829271,500.0,0.00030136,120]
[392899937,1762117829512,500.0,0.00030136,120]
[392899938,1762117829593,2080.61,0.00030137,120]
[392899939,1762117830349,500.0,0.00030136,120]
[392899940,1762117830417,521.07992761,0.00030136,120]
[392899941,1762117831295,500.0,0.00030136,120]
[392899944,1762117831532,500.0,0.00030136,120]
[392899945,1762117831569,-166.66,0.00014566,2]
[392899946,1762117831578,-250.0,0.00014573,2]
[392899947,1762117831589,-300.0,0.00014573,2]
[392899948,1762117831599,-150.0,0.00014612,2]
[392899949,1762117831609,-150.0,0.00014612,2]
[392899950,1762117831619,-36.37409589,0.00014624,2]
[392899951,1762117831631,-1732.7307497,0.00014624,2]
[392899952,1762117831819,-300.89515441,0.00014624,2]
[392899953,1762117831829,-221.66766337,0.00014644,2]
[392899954,1762117831840,-2070.0,0.00014644,2]
[392899955,1762117831850,-500.0,0.00014683,2]
[392899956,1762117831859,-2070.0,0.00014695,2]
[392899957,1762117831869,-1200.0,0.0001473,2]
[392899958,1762117831878,-300.0,0.0001473,2]
[392899959,1762117831888,-1200.0,0.00014731,2]
[392899960,1762117831897,-150.0,0.00014731,2]
[392899961,1762117831907,-5485.13,0.00014732,2]
[392899962,1762117831917,-1451.37,0.00014732,2]
[392899963,1762117831926,-6207.29,0.00014732,2]
[392899964,1762117831936,-299.99,0.00014732,2]
[392899967,1762117831946,-3513.38,0.00014732,2]
[392899969,1762117831956,-9999.99,0.00014732,2]
[392899971,1762117831967,-1358.18,0.00014732,2]
[392899973,1762117831976,-22421.19,0.00014732,2]
[392899975,1762117831986,-150.99,0.00014732,2]
[392899977,1762117831996,-4492.58,0.00014732,2]
[392899979,1762117832005,-1167.32,0.00014732,2]
[392899981,1762117832015,-288.37,0.00014733,2]
[392899982,1762117832024,-150.0,0.00014799,2]
[392899985,1762117832034,-150.0,0.00014799,2]
[392899988,1762117832043,-1000.0,0.000148,2]
[392899990,1762117832054,-3295.8658707,0.000148,2]
[392899992,1762117832063,-498.83986895,0.000148,2]
[392899994,1762117832072,-2500.0,0.000148,2]
[392899995,1762117832082,-3295.8658707,0.00014811,2]
[392899996,1762117832092,-3295.8658707,0.00014822,2]
[392899997,1762117832105,-3295.8658707,0.00014833,2]
[392899998,1762117832116,-1030.39,0.0001484,2]
[392899999,1762117832125,-200.0,0.0001484,2]
[392900000,1762117832135,-151.0,0.0001484,2]
[392900001,1762117832145,-151.0,0.0001484,2]
[392900002,1762117832155,-151.0,0.0001484,2]
[392900003,1762117832165,-151.0,0.0001484,2]
[392900004,1762117832174,-500.0,0.0001484,2]
[392900005,1762117832184,-151.0,0.0001484,2]
[392900006,1762117832194,-151.0,0.0001484,2]
[392900007,1762117832204,-151.0,0.0001484,2]
[392900008,1762117832214,-151.0,0.0001484,2]
[392900009,1762117832227,-151.0,0.0001484,2]
[392900010,1762117832238,-151.0,0.0001484,2]
[392900011,1762117832250,-151.0,0.0001484,2]
[392900012,1762117832260,-151.0,0.0001484,2]
[392900013,1762117832270,-151.0,0.0001484,2]
[392900014,1762117832281,-151.0,0.0001484,2]
[392900015,1762117832294,-496.47127164,0.0001484,2]
[392900016,1762117832305,-151.0,0.0001484,2]
[392900017,1762117832315,-151.0,0.0001484,2]
[392900018,1762117832325,-151.0,0.0001484,2]
[392900019,1762117832335,-151.0,0.0001484,2]
[392900020,1762117832345,-151.0,0.0001484,2]
[392900021,1762117832355,-151.0,0.0001484,2]
[392900022,1762117832364,-151.0,0.0001484,2]
[392900023,1762117832374,-151.0,0.0001484,2]
[392900024,1762117832384,-151.0,0.0001484,2]
[392900025,1762117832394,-151.0,0.0001484,2]
[392900026,1762117832404,-223.04143274,0.0001484,2]
[392900027,1762117832413,-3295.8658707,0.00014844,2]
[392900028,1762117832423,-1003.76973602,0.00014848,2]
[392900029,1762117832438,-495.51437203,0.00014848,2]
[392900030,1762117832449,-500.0,0.00014848,2]
[392900031,1762117832461,-500.0,0.00014848,2]
[392900032,1762117832474,-500.0,0.00014848,2]
[392900033,1762117832483,-500.0,0.00014848,2]
[392900034,1762117832497,-500.0,0.00014848,2]
[392900035,1762117832507,-500.0,0.00014848,2]
[392900036,1762117832517,-500.0,0.00014848,2]
[392900037,1762117832529,-500.0,0.00014848,2]
[392900038,1762117832540,-500.0,0.00014848,2]
[392900039,1762117832551,-500.0,0.00014848,2]
[392900040,1762117832562,-500.0,0.00014848,2]
[392900041,1762117832573,-500.0,0.00014848,2]
[392900042,1762117832583,-393.90955687,0.00014848,2]
[392900043,1762117832594,-500.0,0.00014848,2]
[392900044,1762117832603,-500.0,0.00014848,2]
[392900045,1762117832613,-500.0,0.00014848,2]
[392900046,1762117832624,-500.0,0.00014848,2]
[392900047,1762117832636,-300.0,0.00014848,2]
[392900048,1762117832645,-11333.02241873,0.0001485,2]
[392900049,1762117832655,-3295.8658707,0.00014856,2]
[392900050,1762117832665,-3295.8658707,0.00014867,2]
[392900051,1762117832675,-500.0,0.00014873,2]
[392900052,1762117832684,-500.0,0.00014873,2]
[392900053,1762117832698,-500.0,0.00014873,2]
[392900054,1762117832708,-500.0,0.00014873,2]
[392900055,1762117832717,-500.0,0.00014873,2]
[392900056,1762117832727,-502.80371552,0.00014873,2]
[392900057,1762117832736,-500.0,0.00014873,2]
[392900058,1762117832746,-161.80681393,0.00014873,2]
[392900059,1762117832756,-500.22528228,0.00014873,2]
[392900060,1762117832766,-500.0,0.00014873,2]
[392900061,1762117832775,-500.0,0.00014873,2]
[392900062,1762117832784,-500.0,0.00014873,2]
[392900063,1762117832794,-500.0,0.00014873,2]
[392900064,1762117832803,-500.0,0.00014873,2]
[392900065,1762117832812,-500.0,0.00014873,2]
[392900066,1762117832822,-500.0,0.00014873,2]
[392900067,1762117832831,-500.0,0.00014873,2]
[392900068,1762117832841,-500.0,0.00014873,2]
[392900069,1762117832851,-3295.8658707,0.00014878,2]
[392900070,1762117832861,-3295.8658707,0.00014889,2]
[392900071,1762117832870,-238.43443022,0.00014899,2]
[392900072,1762117832880,-187.58031268,0.00014899,2]
[392900073,1762117832892,-500.0,0.00014899,2]
[392900074,1762117832901,-169.99407853,0.00014899,2]
[392900075,1762117832911,-500.0,0.00014899,2]
[392900076,1762117832921,-242.69924436,0.00014899,2]
[392900077,1762117832930,-500.0,0.00014899,2]
[392900078,1762117832940,-500.0,0.00014899,2]
[392900079,1762117832949,-500.0,0.00014899,2]
[392900080,1762117832959,-500.0,0.00014899,2]
[392900081,1762117832968,-164.86358554,0.000149,2]
[392900082,1762117832978,-480.9727,0.000149,2]
[392900083,1762117832987,-98229.85331034,0.000149,2]
[392900084,1762117833002,-367.62244503,0.000149,2]
[392900085,1762117833014,-1344.40085279,0.000149,2]
[392900086,1762117833187,-1428.87580986,0.000149,2]
[392900087,1762117833199,-814.82102388,0.000149,2]
[392900088,1762117833211,-19577.29039402,0.000149,2]
[392900089,1762117833223,-6910.14162014,0.000149,2]
[392900090,1762117833746,-26731.96614394,0.000149,2]
[392900091,1762117833757,-3295.8658707,0.000149,2]
[392900092,1762117833992,-491.84869329,0.000149,2]
[392900093,1762117834002,-255.18524496,0.000149,2]
[392900094,1762117834012,-40000.0,0.000149,2]
[392900095,1762117834021,-215.61115068,0.000149,2]
[392900096,1762117834031,-6469.0,0.00014939,2]
[392900097,1762117834041,-477.45087779,0.00014947,2]
[392900098,1762117834050,-500.0,0.00014973,2]
[392900099,1762117834060,-171.53113476,0.00014973,2]
[392900100,1762117834069,-500.0,0.00014973,2]
[392900101,1762117834079,-172.16017549,0.00014973,2]
[392900102,1762117834090,-500.0,0.00014973,2]
[392900103,1762117834100,-500.0,0.00014973,2]
[392900104,1762117834110,-500.0,0.00014973,2]
[392900105,1762117834121,-170.97892851,0.00014973,2]
[392900106,1762117834131,-500.0,0.00014973,2]
[392900107,1762117834140,-500.0,0.00014973,2]
[392900108,1762117834149,-621.79964264,0.00014973,2]
[392900109,1762117834158,-500.0,0.00014973,2]
[392900110,1762117834168,-500.0,0.00014973,2]
[392900111,1762117834178,-500.0,0.00014973,2]
[392900112,1762117834187,-500.0,0.00014973,2]
[392900113,1762117834197,-500.0,0.00014973,2]